Cogmind - Beta 10 X2 @@@ ROGUE MODE // 2020.07.06 @ 17:21:19 Player: Decinym Result: Destroyed self with Mini Grenade Launcher Performance ------------- Evolutions (1) 500 Regions Visited (5) 1000 Robots Destroyed (76) 380 Value Destroyed (1378) 1378 Prototype IDs (26) 520 Alien Tech Used (0) 0 Bonus (-214) -214 TOTAL SCORE: 3564 Bonus ------- High Alert Combat Kills 77 Aligned with FarCom 300 Friendly Fire -591 Cogmind --------- Core Integrity 0/400 Matter 172/300 Energy 73/100 System Corruption 11% Temperature Cool (0) Movement Core (300) Ox5 Location -9/Exiles Parts ------- > --- POWER (1) -------- (None) > --- PROPULSION (2) --- (None) > --- UTILITY (4) ------ Large Storage Unit Salvage Targeting Computer Armor Integrity Analyzer > --- WEAPON (2) ------- Mini Grenade Launcher > --- INVENTORY (10) --- Improved Ion Engine Light Deuterium Engine Combat Airjet Peak State ------------ > --- POWER ------------ Heavy Ion Engine > --- PROPULSION ------- Light Treads Improved Treads > --- UTILITY ---------- Medium Storage Unit Large Storage Unit Salvage Targeting Computer Light Armor Plating > --- WEAPON ----------- Improved Assault Rifle Katana > --- INVENTORY -------- Improved Ion Engine Light Deuterium Engine Light Treads Combat Airjet Combat Airjet Combat Airjet Armor Integrity Analyzer Advanced Beam Cannon Advanced Beam Cannon Shotgun Shotgun Improved Assault Rifle Mini Grenade Launcher Deploy-a-Sentry [Rating: 21] Favorites ----------- Power Heavy Ion Engine Engine Heavy Ion Engine Power Core Light Nuclear Core Propulsion Light Treads Treads Light Treads Leg Aluminum Leg Utility Large Storage Unit Storage Large Storage Unit Processor Salvage Targeting Computer Protection Light Armor Plating Weapon Shotgun Energy Gun Particle Gun Energy Cannon Advanced Beam Cannon Ballistic Gun Shotgun Launcher Grenade Launcher Slashing Weapon Katana Build | -11 -10 -10 -9 -9 -9 ------- Run | Scr Mat Min Mat Min Exi Slots Evolved 2 | . . . 2 . . Power . | . . . . . . Propulsion . | . . . . . . Utility 2 | . . . 2 . . Weapon . | . . . . . . Parts Attached 55 | . 7 3 21 10 14 Power 6 | . 2 1 3 . . Engine 5 | . 2 1 2 . . Core 1 | . . . 1 . . Reactor . | . . . . . . Propulsion 8 | . 2 . 3 2 1 Treads 8 | . 2 . 3 2 1 Leg . | . . . . . . Wheel . | . . . . . . Hover . | . . . . . . Flight . | . . . . . . Utility 8 | . 1 . 4 2 1 Device . | . . . . . . Storage 2 | . 1 . 1 . . Processor 2 | . . . 1 . 1 Hackware . | . . . . . . Protection 4 | . . . 2 2 . Artifact . | . . . . . . Weapon 33 | . 2 2 11 6 12 Energy Gun 3 | . 1 1 1 . . Energy Cannon 4 | . . . 1 . 3 Ballistic Gun 18 | . 1 . 6 4 7 Ballistic Cannon . | . . . . . . Launcher 7 | . . 1 3 1 2 Special Weapon . | . . . . . . Impact Weapon . | . . . . . . Slashing Weapon 1 | . . . . 1 . Piercing Weapon . | . . . . . . Special Melee Weapon . | . . . . . . Unidentified Prototypes 3 | . . . 3 . . Parts Lost 22 | . 3 . 3 5 11 Power 3 | . 1 . 1 . 1 Propulsion 7 | . 1 . 1 2 3 Utility 4 | . . . 1 2 1 Weapon 8 | . 1 . . 1 6 Highest Loss Streak 8 | . 2 . 2 2 8 Average Slot Usage (%) 96 | . 95 100 97 98 94 Engine 10 | . 12 14 8 11 10 Treads 21 | . 16 28 21 20 21 Leg 1 | . 10 . . . . Storage 22 | . 27 28 22 22 18 Processor 9 | . . . 10 11 14 Protection 7 | . . . 9 10 8 Energy Gun 4 | . 21 14 2 . . Ballistic Gun 14 | . 4 14 16 15 16 Launcher 2 | . . . 1 6 . Naked Turns . | . . . . . . Heaviest Build 41 | 12 30 30 41 41 41 Greatest Support 46 | 20 40 40 46 43 43 Greatest Overweight (x) 2 | . 1 . . 2 . Average Overweight (x) . | . . . . . . Largest Inventory Capacity 14 | . 12 12 14 14 14 Average Capacity 12 | . 11 12 12 14 12 Most Carried 14 | . 12 12 14 14 14 Average Carried 11 | . 9 11 12 12 9 Final Capacity 14 | 6 12 12 14 14 10 Final Carried 14 | 6 12 12 14 13 3 Class Distribution -------------------- 92% | Mutant 7% | Scavenger-Mutant Dominant Class ---------------- Mutant | -10/Materials Mutant | -10/Mines Mutant | -9/Materials Mutant | -9/Mines Mutant | -9/Exiles Resources | -11 -10 -10 -9 -9 -9 ----------- Run | Scr Mat Min Mat Min Exi Matter Collected 1475 | 172 128 42 633 334 166 Remotely . | . . . . . . Salvage Created 1770 | . 436 80 795 377 82 Parts 119 | . 24 11 57 24 3 Haulers Intercepted 4 | . 1 . 3 . . Recyclers Shooed 4 | . 2 . 2 . . Parts Field Recycled . | . . . . . . Retrieved Matter . | . . . . . . Parts Self-Destructed . | . . . . . . Prevented . | . . . . . . Kills | -11 -10 -10 -9 -9 -9 ------- Run | Scr Mat Min Mat Min Exi Combat Hostiles Destroyed 60 | . 9 5 24 21 1 Guns 33 | . 9 3 12 9 . AOE 27 | . . 2 12 12 1 Classes Destroyed 11 | . 4 . 3 3 1 Worker 3 | . . . 3 . . Hauler 4 | . 1 . 3 . . Recycler 2 | . 1 . 1 . . Watcher 1 | . . . 1 . . Swarmer 23 | . 3 3 14 3 . Grunt 17 | . 6 2 5 4 . Duelist 1 | . . . . 1 . Sentry 5 | . . . 5 . . Demolisher 2 | . . . . 2 . Zionite 2 | . . . . . 2 Assembled 15 | . . . . 10 5 Best Kill Streak 10 | . 4 3 7 10 2 Combat Bots Only 10 | . 4 3 5 10 1 Max Kills in Single Turn 4 | . 1 1 3 2 4 Gunslinging . | . . . . . . Exploded 3 | . . 1 3 2 1 Melee . | . . . . . . Uniques/NPCs Destroyed 2 | . . . . 1 1 YI-UF0 (-9/Mines) EX-HEX (-9/Exiles) 8R-AWN (-9/Exiles) Combat | -11 -10 -10 -9 -9 -9 -------- Run | Scr Mat Min Mat Min Exi Damage Taken 3586 | . 462 119 861 869 1275 Core 551 | . 121 21 111 50 248 Absorbed by Shields . | . . . . . . Core Remaining (%) 71 | 100 . 43 . . . Volleys Fired 167 | . 37 12 53 35 30 Largest 2 | . 2 2 2 2 2 Hottest 136 | . 105 85 85 46 136 Shots Fired 270 | . 67 22 88 46 47 Gun 230 | . 67 20 74 30 39 Cannon 3 | . . . . . 3 Launcher 37 | . . 2 14 16 5 Special . | . . . . . . Kinetic 162 | . 15 10 68 30 39 Thermal 71 | . 52 10 6 . 3 Explosive 37 | . . 2 14 16 5 Electromagnetic . | . . . . . . Robot Hit Streak 14 | . 7 14 11 11 12 Robot Miss Streak 5 | . 5 3 4 2 4 Penetration Max . | . . . . . . Secondary Targets 2 | . 1 1 . . . Max Gunslinging Chain 1 | . 1 1 . . . Shots Hit Robots 190 | . 39 17 64 34 36 Core Hits 131 | . 22 5 49 40 15 Critical Hits 1 | . . . . . 1 Critical Kills . | . . . . . . Critical Parts Destroyed 1 | . . . . . 1 Melee Attacks 2 | . . . . 2 . Impact . | . . . . . . Slashing 2 | . . . . 2 . Piercing . | . . . . . . Sneak Attacks . | . . . . . . Combat Hostiles . | . . . . . . Follow-up Attacks . | . . . . . . Damage Inflicted 4857 | . 461 373 1743 1344 936 Guns 2408 | . 461 214 881 425 427 Cannons 60 | . . . . . 60 Explosions 2389 | . . 159 862 919 449 Melee . | . . . . . . Ramming . | . . . . . . Kinetic 1850 | . 95 89 814 425 427 Thermal 711 | . 366 174 111 . 60 Explosive 2296 | . . 110 818 919 449 Electromagnetic . | . . . . . . Impact . | . . . . . . Slashing . | . . . . . . Piercing . | . . . . . . Highest Corruption 11 | . . . . . 11 Average Corruption 6 | . . . . . 6 Corruption Purged . | . . . . . . Effects 3 | . . . . . 3 Targeting Errors 3 | . . . . . 3 Overload Shots . | . . . . . . Overflow Damage 96 | . . . 21 44 31 Projectiles . | . . . . . . Explosions 96 | . . . 21 44 31 Melee . | . . . . . . Knockbacks . | . . . . . . Impact . | . . . . . . Kinetic . | . . . . . . Secondary . | . . . . . . Self-Inflicted Damage 310 | . . . 173 73 64 Shots 12 | . . . 5 4 3 Rammed . | . . . . . . Targets Rammed . | . . . . . . Kicked . | . . . . . . Crushed . | . . . . . . Highest Temperature 257 | . 257 120 57 11 93 Average Temperature 67 | . 94 41 15 8 53 Received Heat Transfer 459 | . 198 27 192 42 . Effects 1 | . 1 . . . . Energy Bleed 1 | . 1 . . . . Siege Activations . | . . . . . . Robots Corrupted . | . . . . . . Combat Hostiles . | . . . . . . Parts Fried . | . . . . . . Impact Corruptions . | . . . . . . Robots Melted . | . . . . . . Combat Hostiles . | . . . . . . Parts Melted 2 | . 2 . . . . Heat Transferred 1588 | . 883 346 248 . 111 Parts Sabotaged . | . . . . . . Parts Stolen . | . . . . . . Parts Stripped . | . . . . . . Power Chain Reactions . | . . . . . . Missiles Intercepted . | . . . . . . Alert | -11 -10 -10 -9 -9 -9 ------- Run | Scr Mat Min Mat Min Exi Peak Influence 629 | . 172 150 629 354 . Average Influence 225 | . 91 96 380 206 . Maximum Alert Level 2 | . . . 2 1 . Low Security (%) 63 | . 100 100 31 61 . Level 1 20 | . . . 15 38 . Level 2 15 | . . . 53 . . Level 3 . | . . . . . . Level 4 . | . . . . . . Level 5 . | . . . . . . High Security . | . . . . . . Max Security . | . . . . . . Squads Dispatched 2 | . 1 . 1 . . Investigation . | . . . . . . Extermination . | . . . . . . Reinforcement 2 | . 1 . 1 . . Assault . | . . . . . . Garrison . | . . . . . . Intercept . | . . . . . . Construction Impeded . | . . . . . . Haulers Reinforced . | . . . . . . Stealth | -11 -10 -10 -9 -9 -9 --------- Run | Scr Mat Min Mat Min Exi Distress Signals 6 | . . . 6 . . Communications Jammed . | . . . . . . Distress Signals . | . . . . . . Times Spotted 99 | . 18 5 38 25 13 Peak Tracking Total 8 | . 4 3 7 8 6 Tactical Retreats 5 | . 1 . 2 . 2 Traps | -11 -10 -10 -9 -9 -9 ------- Run | Scr Mat Min Mat Min Exi Traps Triggered 1 | . 1 . . . . Indirectly . | . . . . . . Trap Hack Attempts . | . . . . . . Triggered . | . . . . . . Disarmed . | . . . . . . Reprogrammed . | . . . . . . Reused . | . . . . . . Traps Extracted . | . . . . . . Installed . | . . . . . . Triggered . | . . . . . . Machines | -11 -10 -10 -9 -9 -9 ---------- Run | Scr Mat Min Mat Min Exi Machines Disabled 13 | . . 2 6 . 5 Max in Single Turn 4 | . . 1 4 . 2 Machines Sabotaged . | . . . . . . Garrisons Compromised . | . . . . . . Overloaded Fab Kills . | . . . . . . Fab Network Shutdowns . | . . . . . . Hacking | -11 -10 -10 -9 -9 -9 --------- Run | Scr Mat Min Mat Min Exi Machines Accessed 3 | . 1 . 1 . 1 Terminals 2 | . 1 . 1 . . Fabricators . | . . . . . . Repair Stations . | . . . . . . Recycling Units . | . . . . . . Scanalyzers . | . . . . . . Garrison Access . | . . . . . . Total Hacks 8 | . 6 . 1 . 1 Successful 4 | . 2 . 1 . 1 Failed 4 | . 4 . . . . Catastrophic . | . . . . . . Database Lockouts . | . . . . . . Manual 2 | . . . 1 . 1 Terminals 7 | . 6 . 1 . . Fabricators . | . . . . . . Repair Stations . | . . . . . . Recycling Units . | . . . . . . Scanalyzers . | . . . . . . Garrison Access . | . . . . . . Terminal Hacks 4 | . 2 . 1 . 1 Branch Access Points 2 | . 1 . 1 . . Unreport Threat 1 | . 1 . . . . EX-Prototype ID Bank 1 | . . . . . 1 Fabricator Hacks . | . . . . . . Repair Station Hacks . | . . . . . . Recycling Unit Hacks . | . . . . . . Scanalyzer . | . . . . . . Garrison Access Hacks . | . . . . . . Unauthorized Hacks . | . . . . . . Terminals . | . . . . . . Fabricators . | . . . . . . Repair Stations . | . . . . . . Recycling Units . | . . . . . . Scanalyzers . | . . . . . . Garrison Access . | . . . . . . Data Cores Recovered . | . . . . . . Used . | . . . . . . Hacking Detections 1 | . 1 . . . . Full Trace Events . | . . . . . . Feedback Events . | . . . . . . Feedback Blocked . | . . . . . . Robot Schematics Acquired . | . . . . . . Robots Built . | . . . . . . Matter . | . . . . . . Time . | . . . . . . Total Robot Build Rating . | . . . . . . Part Schematics Acquired . | . . . . . . Parts Built . | . . . . . . Matter . | . . . . . . Time . | . . . . . . Total Part Build Rating . | . . . . . . Parts Repaired . | . . . . . . Time . | . . . . . . Parts Recycled . | . . . . . . Recycled Matter . | . . . . . . Retrieved Matter . | . . . . . . Retrieved Components . | . . . . . . Parts Scanalyzed . | . . . . . . Part Schematics Acquired . | . . . . . . Parts Damaged . | . . . . . . Bothacking | -11 -10 -10 -9 -9 -9 ------------ Run | Scr Mat Min Mat Min Exi Used RIF Installer . | . . . . . . Robots Hacked . | . . . . . . Non-combat . | . . . . . . Combat . | . . . . . . Robot Hacks Applied . | . . . . . . Relay Couplers Released . | . . . . . . Robots Rewired . | . . . . . . Allies Hacked . | . . . . . . Hacks Repelled . | . . . . . . Allies | -11 -10 -10 -9 -9 -9 -------- Run | Scr Mat Min Mat Min Exi Total Allies . | . . . . . . Largest Group . | . . . . . . Highest-Rated Group . | . . . . . . Highest-Rated Ally . | . . . . . . Total Orders . | . . . . . . Ally Attacks 24 | . . . . . 24 Total Damage 1133 | . . . . . 1133 Kills 5 | . . . . . 5 Allies Corrupted . | . . . . . . Allies Melted . | . . . . . . Turrets Deployed 3 | . . . . . 3 Intel | -11 -10 -10 -9 -9 -9 ------- Run | Scr Mat Min Mat Min Exi Robot Analysis Total . | . . . . . . Derelict Logs Recovered 1 | . . . . 1 . Drone Launches . | . . . . . . Drone Recoveries . | . . . . . . Exploration | -11 -10 -10 -9 -9 -9 ------------- Run | Scr Mat Min Mat Min Exi Turns Passed 3513 | . 408 287 714 1034 1070 Spaces Moved 1728 | 1 167 155 328 478 599 Core . | . . . . . . Treads 1675 | . 115 155 328 478 599 Legs 53 | 1 52 . . . . Wheels . | . . . . . . Hover . | . . . . . . Flight . | . . . . . . Fastest Speed 120 | 120 120 160 160 160 160 Average Speed 160 | 120 154 160 160 163 160 Slowest Speed 200 | 120 160 160 160 200 160 Overloaded Moves . | . . . . . . Propulsion Burnouts . | . . . . . . Robots Hopped . | . . . . . . Cave-ins Triggered . | . . . . . . Exploration Rate (%) 44 | 2 42 37 34 85 69 Regions Visited 5 Branch Regions 3 Pre-discovered Areas 1 | . . . . 1 . Known Exits Taken 2 | . 1 . 1 . . Unknown Exits Taken 3 | 1 . 1 . 1 . Scrap Searched 2 | . . 1 . 1 . Spaces Dug 2 | . . . . 2 . Terrain Destroyed 222 | . . 22 93 81 26 Melee 2 | . . . . 2 . Projectile . | . . . . . . AOE 220 | . . 22 93 79 26 Actions | -11 -10 -10 -9 -9 -9 --------- Run | Scr Mat Min Mat Min Exi Total 2205 | . 256 172 429 680 668 Wait 175 | . 17 . 5 148 5 Move 1723 | . 166 154 327 477 599 Hop . | . . . . . . Pick Up 44 | . 19 1 10 6 8 Fast Attach 8 | . 1 . 6 1 . Attach 21 | . 3 . 6 5 7 Detach 2 | . . . 2 . . Swap 26 | . 3 3 9 4 7 Drop 37 | . 10 2 11 2 12 Fire 167 | . 37 12 53 35 30 Melee 2 | . . . . 2 . Ram . | . . . . . . Kick . | . . . . . . Crush . | . . . . . . Escape Stasis . | . . . . . . Rewire . | . . . . . . Trap . | . . . . . . Miscellaneous . | . . . . . . Route ------- -11/Scrapyard -10/Materials -10/Mines -9/Materials -9/Mines (discovered 2 exits: [*Mat] / *Exi) -9/Exiles (discovered 1 exit: [*Min]) History --------- Turn | Location | Event 1 | -11/Scrapyard | Discovered new exit (range 0) 1 | -11/Scrapyard | Entered Materials 300 | -10/Materials | Identified exit to Mines 318 | -10/Materials | Build established: Mutant 409 | -10/Materials | Entered Mines 624 | -10/Mines | Core integrity fell below 50% 683 | -10/Mines | Discovered new exit (range 9) 696 | -10/Mines | Entered Materials 696 | -9/Materials | Evolved 2 slots: Utility x2 982 | -9/Materials | Identified exit to Mines 1410 | -9/Materials | Entered Mines 1506 | -9/Mines | Learned location of Storage (-7) 1541 | -9/Mines | Destroyed YI-UF0 1779 | -9/Mines | Assembled infested the area 1858 | -9/Mines | Destroyed 10 combat bots 2135 | -9/Mines | Discovered new exit (range 9) 2438 | -9/Mines | Deemed a non-threat by the Exiles lab entrance 2438 | -9/Mines | Discovered new exit (range 5) 2444 | -9/Mines | Entered Exiles 2465 | -9/Exiles | Discovered new exit (range 15) 2484 | -9/Exiles | Met 8R-AWN 2510 | -9/Exiles | Met EX-HEX 2561 | -9/Exiles | Met EX-BIN 2588 | -9/Exiles | Aligned with FarCom system 2590 | -9/Exiles | Given EX-Vault access code 2628 | -9/Exiles | Opened EX-Vault 2640 | -9/Exiles | Found Deploy-a-Sentry 2650 | -9/Exiles | Found Deploy-a-Sentry 2654 | -9/Exiles | Found Deploy-a-Sentry 2695 | -9/Exiles | Warned to stay clear of 0b10 Research branches 2773 | -9/Exiles | DAS Turret deployed 2782 | -9/Exiles | DAS Turret deployed 2800 | -9/Exiles | DAS Turret deployed 3050 | -9/Exiles | Met EX-DEC 3215 | -9/Exiles | Attacked by the Exiles 3215 | -9/Exiles | Allies destroyed EX-HEX 3256 | -9/Exiles | Allies destroyed 8R-AWN 3491 | -9/Exiles | Core integrity fell below 50% 3510 | -9/Exiles | Core integrity fell below 20% 3512 | -9/Exiles | System corruption reached 10% 3514 | -9/Exiles | Destroyed self with Mini Grenade Launcher Last Messages --------------- 03349_ Destroyed Prototype Ballistic Cannon. 03470_ GM-J5T destroyed. 03475_ 5L-KAT destroyed. 03483_ Acquired 24 matter. 03486_ Machine disabled. 03488_ Lgt. Treads destroyed. 03492_ Machine disabled. 03495_ System corrupted: Imp. Assault Rifle targeting data glitched. 03496_ Hvy. Ion Engine destroyed. 03499_ Critical hit. 03499_ Imp. Assault Rifle destroyed. 03502_ Critical hit. 03502_ Imp. Treads destroyed. 03504_ System corrupted: Imp. Assault Rifle targeting data glitched. 03504_ System corrupted: Shotgun targeting data glitched. 03507_ Imp. Assault Rifle destroyed. 03507_ Shotgun destroyed. 03508_ Adv. Beam Cannon destroyed. 03509_ Shotgun destroyed. 03512_ Testing Apparatus damaged. Map ----- +----------------------------------------------------+ | ????????????#"""" | | ????????????## | | ?????????????#" " "" | | ?????????????#"""" ""## ##""" " " | | ?????????????#"" ""#### ######""" " | | ?????????????#" """"##??# #????###""" | | ?????????????#""" """#??## ####???#### | | ??????????????# ""##??#! "!#??????? | | ??????????????#"" """##???#" !#??????? | | ??????????????##""" ##????#" "#??????? | | ???????????????##"""" ##?????#!!""!"#??????? | | ????????????????### #??????########??????? | | ??????????????????##### ##????????????????????? | | ??????????????????????##z #?????????????????????? | | ???????????????????????# #?????????????????????? | | ???????????????????????# #?????????????????????? | | ???????????????????????# #?????????????????????? | | ???????????????????????# #?????????????????????? | | ???????????????????????# #?????????????????????? | | ???????????????????????# #?????????????????????? | | ?????????????? ??????### =#?????????????????????? | | ??????????????" "??## # %#?????????????????????? | | ???????????????? " # =#?????????????????????? | | ?????????????##"""# = ######????????????????? | | ?????????????"" """"""#??????????????? | | ????????????"" c @ "#??????????????? | | ?????????? " "??????????? | | ??????????z z z " "???????????? | | ??????????? " "???????????? | | ??????????? "" #"" ???????????? | | ????????????"" " """" """""#??????????????? | | ?????????????##"""########"""######??????????????? | | ??????????????" ?????????? "???????????????????? | | ?????????????????????????? """??????????????????? | | ??????????????????????????""""???????????????????? | | ?????????????????????????? ""????????????????????? | | ??????????????????????????"??????????????????????? | | ?????????????????????????????????????????????????? | | ?????????????????????????????????????????????????? | | ?????????????????????????????????????????????????? | | ?????????????????????????????????????????????????? | | ?????????????????????????????????????????????????? | | | | | | | | | | | | | | | | | +----------------------------------------------------+ Best States ------------- Heat Dissipation 28 Energy Generation 14 Energy Capacity 280 Matter Stores 300 Matter Capacity 300 Sight Range 16 Terrain Scan Density 10 Armor Coverage 150 Evasion (%) 40 Armor Integrity Analysis 33 Recoil Reduction 2 Salvage Targeting 1 Item Schematics ----------------- None Robot Schematics ------------------ None Fabricated ------------ Nothing Alien Tech Used ----------------- None Achievements -------------- None Challenges ------------ None Game ------ Seed GyrokineticTrapThrower Manual? 0 Play Time 00:25:21 Cumulative 323.1 hours Start 2020.07.06 @ 17:01:15 End 2020.07.06 @ 17:21:19 Sessions 1 Manual Loads 0 Difficulty Rogue Special Mode None Game No. 359 Rogue 359 Adventurer 0 Explorer 0 Win Type - Total 29 Types 17/3/2/1/2/1/3 Lore% 93 Gallery% 88 Achievement% 78 Wizard Run 0 Options --------- ASCII 0 Keyboard 0 Movement Arrows Keybinds 0 Fullscreen 2 Font 18/SmallcapsGlow Map View 76x50 Tactical HUD 1 Map Filters NONE Filters NONE Steam 1 RUN: c2d45af7-3ab4-494f-95d7-0df774d577c1